[Event "Late-Titled-Tuesday-Blitz-September-26-2023"]
[Site "Chess.com"]
[Date "2023.09.26"]
[Round "3"]
[White "Mikhail_Golubev"]
[Black "vanyakuba"]
[Result "1-0"]
[WhiteElo "2591"]
[BlackElo "2383"]
[TimeControl "180+1"]
[EndTime "14:28:29 PDT"]
[Termination "Mikhail_Golubev won by resignation"]

1. e4 {[%clk 0:02:59.6]} 1... d5 {[%clk 0:02:57.3]} 2. exd5 {[%clk 0:02:58.9]}
2... Qxd5 {[%clk 0:02:57.6]} 3. Nf3 {[%clk 0:02:59.5]} 3... Nf6 {[%clk
0:02:57.1]} 4. d4 {[%clk 0:02:58.2]} 4... Bg4 {[%clk 0:02:56.8]} 5. Be2 {[%clk
0:02:54.4]} 5... Nc6 {[%clk 0:02:56.3]} 6. c4 {[%clk 0:02:51]} 6... Qf5 {[%clk
0:02:55.9]} 7. Nc3 {[%clk 0:02:24.5]} 7... O-O-O {[%clk 0:02:44.4]} 8. Be3
{[%clk 0:02:14.2]} 8... e5 {[%clk 0:01:48]} 9. d5 {[%clk 0:02:13.2]} 9... Bxf3
{[%clk 0:01:47.3]} 10. Bxf3 {[%clk 0:02:10.8]} 10... Nd4 {[%clk 0:01:46.7]} 11.
Bxd4 {[%clk 0:01:56.2]} 11... exd4 {[%clk 0:01:47.6]} 12. Qxd4 {[%clk
0:01:55.3]} 12... Re8+ {[%clk 0:01:32.8]} 13. Kf1 {[%clk 0:01:46.6]} 13... Bb4
{[%clk 0:00:46.9]} 14. Nb5 {[%clk 0:01:36.3]} 14... Ne4 {[%clk 0:00:22.5]} 15.
Rd1 {[%clk 0:01:01.4]} 15... a6 {[%clk 0:00:11.7]} 16. a3 {[%clk 0:00:25.6]}
16... Nd2+ {[%clk 0:00:11]} 17. Rxd2 {[%clk 0:00:24.2]} 17... Qb1+ {[%clk
0:00:11]} 18. Bd1 {[%clk 0:00:22.3]} 18... Bxd2 {[%clk 0:00:09.8]} 19. Qxd2
{[%clk 0:00:22.2]} 19... axb5 {[%clk 0:00:09.2]} 20. cxb5 {[%clk 0:00:21.3]}
20... Qe4 {[%clk 0:00:04.9]} 21. Bf3 {[%clk 0:00:12.1]} 21... Qb1+ {[%clk
0:00:04.7]} 22. Bd1 {[%clk 0:00:11.8]} 22... Kb8 {[%clk 0:00:04.5]} 23. f3
{[%clk 0:00:10.6]} 23... Rd8 {[%clk 0:00:04.8]} 24. Kf2 {[%clk 0:00:10.5]} 24...
Rhe8 {[%clk 0:00:04.8]} 25. Rf1 {[%clk 0:00:10.2]} 25... Qf5 {[%clk 0:00:04.6]}
26. Bb3 {[%clk 0:00:09.4]} 26... Qe5 {[%clk 0:00:04.8]} 27. Rd1 {[%clk
0:00:07.9]} 27... Qxh2 {[%clk 0:00:04.6]} 28. Bc4 {[%clk 0:00:07.2]} 28... Qd6
{[%clk 0:00:04]} 29. b4 {[%clk 0:00:05.2]} 29... Qb6+ {[%clk 0:00:03.9]} 30. Kf1
{[%clk 0:00:04.6]} 30... Qh6 {[%clk 0:00:04.4]} 31. Qxh6 {[%clk 0:00:03.7]}
31... gxh6 {[%clk 0:00:05.3]} 32. Kf2 {[%clk 0:00:03.8]} 32... Re5 {[%clk
0:00:05.4]} 33. Rh1 {[%clk 0:00:03.6]} 33... h5 {[%clk 0:00:05.5]} 34. Rh4
{[%clk 0:00:04]} 34... Rg8 {[%clk 0:00:05.1]} 35. Rf4 {[%clk 0:00:04.1]} 35...
Rg7 {[%clk 0:00:04.9]} 36. Bb3 {[%clk 0:00:04]} 36... Kc8 {[%clk 0:00:05.2]} 37.
a4 {[%clk 0:00:04.2]} 37... Kd7 {[%clk 0:00:05.6]} 38. a5 {[%clk 0:00:04.7]}
38... Kd6 {[%clk 0:00:05.3]} 39. a6 {[%clk 0:00:04]} 39... bxa6 {[%clk
0:00:06.2]} 40. bxa6 {[%clk 0:00:04.3]} 40... Re8 {[%clk 0:00:06.7]} 41. a7
{[%clk 0:00:03.6]} 41... Ra8 {[%clk 0:00:06.6]} 42. Rf6+ {[%clk 0:00:03.7]}
42... Ke7 {[%clk 0:00:06]} 43. Ra6 {[%clk 0:00:04.6]} 43... Rgg8 {[%clk
0:00:02.1]} 44. Ba4 {[%clk 0:00:04.2]} 44... Rgd8 {[%clk 0:00:02.6]} 45. Bc6
{[%clk 0:00:04.5]} 45... f5 {[%clk 0:00:02.8]} 46. Bxa8 {[%clk 0:00:04.8]} 46...
Rxa8 {[%clk 0:00:03.7]} 47. Ke3 {[%clk 0:00:04.9]} 47... h4 {[%clk 0:00:03.3]}
48. Kd4 {[%clk 0:00:05.1]} 48... Kd7 {[%clk 0:00:04.2]} 49. Kc5 {[%clk
0:00:04.9]} 49... Kc8 {[%clk 0:00:04.5]} 50. b5 {[%clk 0:00:04.8]} 50... Kb7
{[%clk 0:00:04.5]} 51. d6 {[%clk 0:00:05.2]} 51... cxd6+ {[%clk 0:00:04.4]} 52.
Rxd6 {[%clk 0:00:05.7]} 52... Rc8+ {[%clk 0:00:04.5]} 53. Rc6 {[%clk 0:00:06]}
53... Rd8 {[%clk 0:00:02.3]} 54. Ra6 {[%clk 0:00:05.5]} 54... Rc8+ {[%clk
0:00:02.1]} 55. Kb4 {[%clk 0:00:05.5]} 55... Ra8 {[%clk 0:00:01.4]} 56. Rh6
{[%clk 0:00:05.8]} 56... Rxa7 {[%clk 0:00:01.1]} 57. Rxh7+ {[%clk 0:00:06.1]}
57... Kb6 {[%clk 0:00:02]} 58. Rxa7 {[%clk 0:00:06.2]} 58... Kxa7 {[%clk
0:00:02.9]} 59. Kc5 {[%clk 0:00:06.5]} 59... Kb7 {[%clk 0:00:03.3]} 60. b6
{[%clk 0:00:07.1]} 60... h3 {[%clk 0:00:03.2]} 61. gxh3 {[%clk 0:00:05.7]} 1-0

[Event "Late-Titled-Tuesday-Blitz-September-26-2023"]
[Site "Chess.com"]
[Date "2023.09.26"]
[Round "3"]
[White "krzyzan94"]
[Black "TheMagician"]
[Result "1-0"]
[WhiteElo "2818"]
[BlackElo "2260"]
[TimeControl "180+1"]
[EndTime "14:28:35 PDT"]
[Termination "krzyzan94 won by checkmate"]

1. e4 {[%clk 0:03:00.9]} 1... e5 {[%clk 0:02:58.6]} 2. Nf3 {[%clk 0:02:53.8]}
2... Nc6 {[%clk 0:02:58.6]} 3. Bc4 {[%clk 0:02:50.5]} 3... Bc5 {[%clk
0:02:55.2]} 4. d3 {[%clk 0:02:49.4]} 4... Nf6 {[%clk 0:02:54.2]} 5. Nc3 {[%clk
0:02:49.5]} 5... d6 {[%clk 0:02:53.3]} 6. Na4 {[%clk 0:02:47.8]} 6... Bd4 {[%clk
0:02:47.4]} 7. c3 {[%clk 0:02:45.4]} 7... Bb6 {[%clk 0:02:46.2]} 8. h3 {[%clk
0:02:41.3]} 8... Na5 {[%clk 0:02:42.5]} 9. Nxb6 {[%clk 0:02:34.3]} 9... axb6
{[%clk 0:02:41.2]} 10. Bb5+ {[%clk 0:02:34]} 10... Bd7 {[%clk 0:02:40.2]} 11.
Bxd7+ {[%clk 0:02:33]} 11... Nxd7 {[%clk 0:02:27.5]} 12. O-O {[%clk 0:02:33.9]}
12... O-O {[%clk 0:02:26.8]} 13. d4 {[%clk 0:02:24.7]} 13... Nc6 {[%clk
0:02:26.1]} 14. Re1 {[%clk 0:02:21.3]} 14... Re8 {[%clk 0:02:13.4]} 15. a3
{[%clk 0:02:20.1]} 15... Qe7 {[%clk 0:02:10.1]} 16. d5 {[%clk 0:01:51.9]} 16...
Nd8 {[%clk 0:02:01.6]} 17. b4 {[%clk 0:01:52.1]} 17... Rf8 {[%clk 0:01:35]} 18.
c4 {[%clk 0:01:46.1]} 18... f5 {[%clk 0:01:33.4]} 19. Bg5 {[%clk 0:01:44.1]}
19... Qe8 {[%clk 0:01:29]} 20. Bxd8 {[%clk 0:01:41.9]} 20... Qxd8 {[%clk
0:01:28.9]} 21. exf5 {[%clk 0:01:36.2]} 21... Rxf5 {[%clk 0:01:27.7]} 22. a4
{[%clk 0:01:33]} 22... Qf6 {[%clk 0:01:27.1]} 23. Ra3 {[%clk 0:01:29.5]} 23...
Rf8 {[%clk 0:01:26.1]} 24. Nd2 {[%clk 0:01:17.5]} 24... Qg6 {[%clk 0:01:20]} 25.
Rg3 {[%clk 0:01:16.4]} 25... Rg5 {[%clk 0:01:14.4]} 26. Rxg5 {[%clk 0:01:14.2]}
26... Qxg5 {[%clk 0:01:14.5]} 27. Ne4 {[%clk 0:01:15.1]} 27... Qf5 {[%clk
0:01:09]} 28. Qg4 {[%clk 0:01:04.2]} 28... Qxg4 {[%clk 0:01:01.4]} 29. hxg4
{[%clk 0:01:05.1]} 29... Nf6 {[%clk 0:00:57.3]} 30. Ng5 {[%clk 0:00:32.6]} 30...
Nxg4 {[%clk 0:00:56.3]} 31. f3 {[%clk 0:00:33.2]} 31... Nf6 {[%clk 0:00:50.4]}
32. Ne6 {[%clk 0:00:34.1]} 32... Ra8 {[%clk 0:00:50.2]} 33. Nxc7 {[%clk
0:00:11]} 33... Rxa4 {[%clk 0:00:49.3]} 34. Nb5 {[%clk 0:00:11.4]} 34... Ne8
{[%clk 0:00:47.9]} 35. c5 {[%clk 0:00:08.7]} 35... bxc5 {[%clk 0:00:42.9]} 36.
bxc5 {[%clk 0:00:09.1]} 36... Ra5 {[%clk 0:00:38.3]} 37. cxd6 {[%clk 0:00:09.5]}
37... Nf6 {[%clk 0:00:34.2]} 38. Nc7 {[%clk 0:00:03.7]} 38... Kf7 {[%clk
0:00:16]} 39. Rxe5 {[%clk 0:00:03.4]} 39... Ra1+ {[%clk 0:00:13.6]} 40. Kh2
{[%clk 0:00:03.1]} 40... Rc1 {[%clk 0:00:14.1]} 41. Re7+ {[%clk 0:00:03.4]}
41... Kg6 {[%clk 0:00:13.5]} 42. d7 {[%clk 0:00:02.5]} 42... Nxd7 {[%clk
0:00:13]} 43. Rxd7 {[%clk 0:00:03.4]} 43... b5 {[%clk 0:00:11.5]} 44. d6 {[%clk
0:00:03.7]} 44... b4 {[%clk 0:00:12.1]} 45. Nd5 {[%clk 0:00:02.6]} 45... b3
{[%clk 0:00:10.8]} 46. Rb7 {[%clk 0:00:03.1]} 46... Rd1 {[%clk 0:00:10.8]} 47.
Nf4+ {[%clk 0:00:03.3]} 47... Kf6 {[%clk 0:00:09.9]} 48. g4 {[%clk 0:00:03.1]}
48... Rxd6 {[%clk 0:00:09.2]} 49. Rxb3 {[%clk 0:00:03.3]} 49... g5 {[%clk
0:00:09.5]} 50. Nh5+ {[%clk 0:00:03.4]} 50... Ke5 {[%clk 0:00:09.4]} 51. Kg3
{[%clk 0:00:04.3]} 51... Rd1 {[%clk 0:00:08.7]} 52. Rb5+ {[%clk 0:00:04.6]}
52... Ke6 {[%clk 0:00:08.7]} 53. Rxg5 {[%clk 0:00:05.2]} 53... Rg1+ {[%clk
0:00:07.9]} 54. Kf4 {[%clk 0:00:05.5]} 54... Rb1 {[%clk 0:00:07.1]} 55. Re5+
{[%clk 0:00:05.5]} 55... Kf7 {[%clk 0:00:07.1]} 56. Re4 {[%clk 0:00:06]} 56...
Rb6 {[%clk 0:00:06.7]} 57. Ng3 {[%clk 0:00:06.2]} 57... Rb1 {[%clk 0:00:06.5]}
58. Nf5 {[%clk 0:00:07.1]} 58... Rf1 {[%clk 0:00:06.5]} 59. Re7+ {[%clk
0:00:06.9]} 59... Kf6 {[%clk 0:00:05.7]} 60. g5+ {[%clk 0:00:07.4]} 60... Kg6
{[%clk 0:00:02.7]} 61. Rg7+ {[%clk 0:00:07.4]} 61... Kh5 {[%clk 0:00:02.8]} 62.
Ng3+ {[%clk 0:00:07.7]} 62... Kh4 {[%clk 0:00:01.5]} 63. Rxh7# {[%clk
0:00:08.6]} 1-0

[Event "Late-Titled-Tuesday-Blitz-September-26-2023"]
[Site "Chess.com"]
[Date "2023.09.26"]
[Round "3"]
[White "Thjop"]
[Black "GadimbayliA"]
[Result "1/2-1/2"]
[WhiteElo "2604"]
[BlackElo "2855"]
[TimeControl "180+1"]
[EndTime "14:28:39 PDT"]
[Termination "Game drawn by repetition"]

1. e4 {[%clk 0:02:47.3]} 1... e5 {[%clk 0:03:00]} 2. Nf3 {[%clk 0:02:45.9]} 2...
d5 {[%clk 0:03:00.4]} 3. Nxe5 {[%clk 0:02:43.8]} 3... Bd6 {[%clk 0:03:00.3]} 4.
d4 {[%clk 0:02:39.3]} 4... dxe4 {[%clk 0:03:00.7]} 5. Nc4 {[%clk 0:02:38.9]}
5... Nf6 {[%clk 0:03:01]} 6. Be2 {[%clk 0:02:37.7]} 6... O-O {[%clk 0:03:01.9]}
7. Bg5 {[%clk 0:02:34.4]} 7... Nc6 {[%clk 0:03:01.9]} 8. c3 {[%clk 0:02:29.7]}
8... Bf5 {[%clk 0:03:01.4]} 9. Nbd2 {[%clk 0:02:27.1]} 9... Re8 {[%clk
0:03:01.4]} 10. Nf1 {[%clk 0:02:23.1]} 10... h6 {[%clk 0:02:58.5]} 11. Bh4
{[%clk 0:02:14.6]} 11... Be7 {[%clk 0:02:58.5]} 12. Nfe3 {[%clk 0:02:10.4]}
12... Bg6 {[%clk 0:02:58.7]} 13. Qb3 {[%clk 0:02:08.3]} 13... Rb8 {[%clk
0:02:57.1]} 14. a4 {[%clk 0:02:01.5]} 14... a6 {[%clk 0:02:18]} 15. a5 {[%clk
0:01:54.8]} 15... Nd5 {[%clk 0:02:13.5]} 16. Bxe7 {[%clk 0:01:51.8]} 16... Rxe7
{[%clk 0:02:13.5]} 17. g3 {[%clk 0:01:44.8]} 17... Kh7 {[%clk 0:02:08.7]} 18. h4
{[%clk 0:01:42.7]} 18... f6 {[%clk 0:01:53.5]} 19. Qc2 {[%clk 0:01:19.2]} 19...
Kh8 {[%clk 0:01:18.4]} 20. h5 {[%clk 0:01:16.1]} 20... Bh7 {[%clk 0:01:17.7]}
21. Nxd5 {[%clk 0:01:06.7]} 21... Qxd5 {[%clk 0:01:18.6]} 22. Ne3 {[%clk
0:01:07.2]} 22... Qd6 {[%clk 0:01:11.9]} 23. b4 {[%clk 0:01:00.5]} 23... f5
{[%clk 0:01:11.1]} 24. Rh4 {[%clk 0:00:59.7]} 24... Rf8 {[%clk 0:01:08.7]} 25.
Rf4 {[%clk 0:00:56.4]} 25... Ree8 {[%clk 0:01:01.7]} 26. Kf1 {[%clk 0:00:54.3]}
26... Ne7 {[%clk 0:01:00.6]} 27. Nc4 {[%clk 0:00:23.1]} 27... Qf6 {[%clk
0:01:00]} 28. Ne3 {[%clk 0:00:20.1]} 28... Qc6 {[%clk 0:00:37.1]} 29. Rh4 {[%clk
0:00:09]} 29... f4 {[%clk 0:00:34.4]} 30. Rxf4 {[%clk 0:00:08.2]} 30... Rxf4
{[%clk 0:00:35.1]} 31. gxf4 {[%clk 0:00:09.1]} 31... Qf6 {[%clk 0:00:35.9]} 32.
Ng2 {[%clk 0:00:09]} 32... Nd5 {[%clk 0:00:24.3]} 33. Qd2 {[%clk 0:00:09]} 33...
Qe6 {[%clk 0:00:24.5]} 34. Bc4 {[%clk 0:00:08.3]} 34... Qh3 {[%clk 0:00:25]} 35.
Kg1 {[%clk 0:00:05.9]} 35... Nxc3 {[%clk 0:00:18.2]} 36. Qe3 {[%clk 0:00:03.6]}
36... Qf3 {[%clk 0:00:10]} 37. Re1 {[%clk 0:00:01.9]} 37... Rd8 {[%clk
0:00:07.9]} 38. Qxf3 {[%clk 0:00:01.6]} 38... exf3 {[%clk 0:00:08.8]} 39. Nh4
{[%clk 0:00:02.1]} 39... Nb5 {[%clk 0:00:06.2]} 40. Bxb5 {[%clk 0:00:02]} 40...
axb5 {[%clk 0:00:07.1]} 41. Nxf3 {[%clk 0:00:02.5]} 41... Bg8 {[%clk 0:00:06.6]}
42. Re5 {[%clk 0:00:02.8]} 42... c6 {[%clk 0:00:06.6]} 43. Kg2 {[%clk
0:00:02.7]} 43... Rf8 {[%clk 0:00:06.2]} 44. Kg3 {[%clk 0:00:03.1]} 44... Bd5
{[%clk 0:00:06.9]} 45. Nh4 {[%clk 0:00:03.5]} 45... Rd8 {[%clk 0:00:07.4]} 46.
Ng6+ {[%clk 0:00:03.5]} 46... Kh7 {[%clk 0:00:08.1]} 47. Ne7 {[%clk 0:00:03.7]}
47... Bf7 {[%clk 0:00:08.2]} 48. Nf5 {[%clk 0:00:04.1]} 48... Bxh5 {[%clk
0:00:07.5]} 49. Re7 {[%clk 0:00:04.6]} 49... Kg6 {[%clk 0:00:05]} 50. Nxg7
{[%clk 0:00:04.2]} 50... Rxd4 {[%clk 0:00:04.7]} 51. Nxh5 {[%clk 0:00:03.7]}
51... Kxh5 {[%clk 0:00:05.6]} 52. Rxb7 {[%clk 0:00:03.8]} 52... Rxb4 {[%clk
0:00:06.3]} 53. a6 {[%clk 0:00:03.7]} 53... Ra4 {[%clk 0:00:06.5]} 54. Rb6
{[%clk 0:00:03.9]} 54... b4 {[%clk 0:00:02.2]} 55. Rxc6 {[%clk 0:00:03.9]} 55...
b3 {[%clk 0:00:02.3]} 56. Rb6 {[%clk 0:00:04.2]} 56... b2 {[%clk 0:00:02.3]} 57.
Rxb2 {[%clk 0:00:03.8]} 57... Ra3+ {[%clk 0:00:02.9]} 58. f3 {[%clk 0:00:03.6]}
58... Rxa6 {[%clk 0:00:03.8]} 59. Rb5+ {[%clk 0:00:03.7]} 59... Kg6 {[%clk
0:00:04.5]} 60. Kg4 {[%clk 0:00:04]} 60... Ra4 {[%clk 0:00:05.2]} 61. Rb6+
{[%clk 0:00:04.1]} 61... Kg7 {[%clk 0:00:05.7]} 62. Rb7+ {[%clk 0:00:02.9]}
62... Kg6 {[%clk 0:00:05.7]} 63. Rb6+ {[%clk 0:00:03.4]} 63... Kg7 {[%clk
0:00:05.9]} 64. Rb7+ {[%clk 0:00:03.8]} 64... Kg6 {[%clk 0:00:06.4]} 65. Rb6+
{[%clk 0:00:04.4]} 1/2-1/2

[Event "Late-Titled-Tuesday-Blitz-September-26-2023"]
[Site "Chess.com"]
[Date "2023.09.26"]
[Round "3"]
[White "IMRosen"]
[Black "Lennis93"]
[Result "0-1"]
[WhiteElo "2551"]
[BlackElo "2729"]
[TimeControl "180+1"]
[EndTime "14:28:40 PDT"]
[Termination "Lennis93 won by checkmate"]

1. d4 {[%clk 0:03:00.9]} 1... Nf6 {[%clk 0:02:17.8]} 2. Bf4 {[%clk 0:02:59.8]}
2... d6 {[%clk 0:02:16.5]} 3. Nc3 {[%clk 0:02:59.6]} 3... g6 {[%clk 0:02:17.4]}
4. e4 {[%clk 0:03:00]} 4... Bg7 {[%clk 0:02:17.8]} 5. Qd2 {[%clk 0:03:00.7]}
5... c6 {[%clk 0:02:18.1]} 6. O-O-O {[%clk 0:02:59.3]} 6... b5 {[%clk
0:02:17.9]} 7. f3 {[%clk 0:02:57.4]} 7... b4 {[%clk 0:02:18]} 8. Nce2 {[%clk
0:02:57.2]} 8... Qa5 {[%clk 0:02:18.1]} 9. Kb1 {[%clk 0:02:57.8]} 9... h5 {[%clk
0:02:18.2]} 10. Nc1 {[%clk 0:02:57.2]} 10... Be6 {[%clk 0:02:18.4]} 11. Nh3
{[%clk 0:02:48.9]} 11... Bxh3 {[%clk 0:02:16.5]} 12. gxh3 {[%clk 0:02:49.8]}
12... Nbd7 {[%clk 0:02:16.2]} 13. Bc4 {[%clk 0:02:40.4]} 13... Nb6 {[%clk
0:02:12.8]} 14. Bb3 {[%clk 0:02:39.7]} 14... Qb5 {[%clk 0:02:13]} 15. Qe2 {[%clk
0:02:17.5]} 15... a5 {[%clk 0:02:11.7]} 16. Qxb5 {[%clk 0:02:04.9]} 16... cxb5
{[%clk 0:02:12.6]} 17. c3 {[%clk 0:02:05.6]} 17... a4 {[%clk 0:02:11.7]} 18. Bc2
{[%clk 0:02:05.9]} 18... a3 {[%clk 0:02:11.9]} 19. Bb3 {[%clk 0:01:54.6]} 19...
axb2 {[%clk 0:02:11.2]} 20. Kxb2 {[%clk 0:01:55.3]} 20... bxc3+ {[%clk
0:02:10.7]} 21. Kxc3 {[%clk 0:01:56.2]} 21... O-O {[%clk 0:02:09.8]} 22. Ne2
{[%clk 0:01:47]} 22... Rfb8 {[%clk 0:01:54]} 23. Rhg1 {[%clk 0:01:46.7]} 23...
b4+ {[%clk 0:01:52.8]} 24. Kd3 {[%clk 0:01:47.1]} 24... Kf8 {[%clk 0:01:45.6]}
25. Rc1 {[%clk 0:01:46.9]} 25... Rc8 {[%clk 0:01:41.7]} 26. Be3 {[%clk
0:01:42.2]} 26... Nfd7 {[%clk 0:01:41.3]} 27. f4 {[%clk 0:01:38.9]} 27... d5
{[%clk 0:01:39.5]} 28. exd5 {[%clk 0:01:12]} 28... Nf6 {[%clk 0:01:38.8]} 29.
Rc5 {[%clk 0:01:12.6]} 29... Rxc5 {[%clk 0:01:29.6]} 30. dxc5 {[%clk 0:01:13.5]}
30... Nbxd5 {[%clk 0:01:30]} 31. Bd2 {[%clk 0:01:12.3]} 31... e6 {[%clk
0:01:29.2]} 32. Kc4 {[%clk 0:00:59.7]} 32... Ne4 {[%clk 0:01:26.6]} 33. Bxb4
{[%clk 0:00:52.4]} 33... Nxb4 {[%clk 0:01:25.3]} 34. Kxb4 {[%clk 0:00:53.3]}
34... Rb8+ {[%clk 0:01:25.5]} 35. Kc4 {[%clk 0:00:46.7]} 35... Rc8 {[%clk
0:01:25]} 36. Kd3 {[%clk 0:00:37.6]} 36... Nxc5+ {[%clk 0:01:24.7]} 37. Ke3
{[%clk 0:00:37.3]} 37... Rb8 {[%clk 0:01:18.8]} 38. Rb1 {[%clk 0:00:36.3]} 38...
Ke7 {[%clk 0:01:17.8]} 39. Bc2 {[%clk 0:00:35.4]} 39... Ra8 {[%clk 0:01:17.1]}
40. Bb3 {[%clk 0:00:28.9]} 40... Bh6 {[%clk 0:01:14.4]} 41. Kf3 {[%clk
0:00:27.5]} 41... Bg7 {[%clk 0:01:11.5]} 42. Ng3 {[%clk 0:00:22.3]} 42... h4
{[%clk 0:01:09.1]} 43. Ne4 {[%clk 0:00:22.5]} 43... Nxe4 {[%clk 0:00:55.5]} 44.
Kxe4 {[%clk 0:00:23.4]} 44... Rd8 {[%clk 0:00:54.3]} 45. a4 {[%clk 0:00:20.3]}
45... Rd4+ {[%clk 0:00:54.1]} 46. Ke3 {[%clk 0:00:20.9]} 46... Rb4 {[%clk
0:00:54.7]} 47. a5 {[%clk 0:00:18.5]} 47... Bh6 {[%clk 0:00:53.2]} 48. Kd3
{[%clk 0:00:12.5]} 48... Bxf4 {[%clk 0:00:52.9]} 49. Kc3 {[%clk 0:00:12.8]}
49... Rb5 {[%clk 0:00:42.2]} 50. a6 {[%clk 0:00:10.8]} 50... Ra5 {[%clk
0:00:42.3]} 51. Bc4 {[%clk 0:00:11]} 51... Bxh2 {[%clk 0:00:37.5]} 52. Rb7+
{[%clk 0:00:10.8]} 52... Kf6 {[%clk 0:00:37.5]} 53. Kb4 {[%clk 0:00:08.3]} 53...
Ra1 {[%clk 0:00:37.4]} 54. Bb3 {[%clk 0:00:05.5]} 54... Rxa6 {[%clk 0:00:34.4]}
55. Ba4 {[%clk 0:00:04.1]} 55... Ra8 {[%clk 0:00:32.8]} 56. Kc4 {[%clk
0:00:03.7]} 56... Rxa4+ {[%clk 0:00:31.6]} 57. Kd3 {[%clk 0:00:04.4]} 57... Ra3+
{[%clk 0:00:27.8]} 58. Ke2 {[%clk 0:00:05.2]} 58... Rxh3 {[%clk 0:00:28.1]} 59.
Kf1 {[%clk 0:00:06.1]} 59... Be5 {[%clk 0:00:26.6]} 60. Kg2 {[%clk 0:00:06.1]}
60... Rh2+ {[%clk 0:00:26.6]} 61. Kg1 {[%clk 0:00:06.4]} 61... Rb2 {[%clk
0:00:26.7]} 62. Rd7 {[%clk 0:00:06.1]} 62... h3 {[%clk 0:00:26.8]} 63. Rd1
{[%clk 0:00:06.5]} 63... g5 {[%clk 0:00:24.3]} 64. Kh1 {[%clk 0:00:07]} 64...
Kg6 {[%clk 0:00:24.5]} 65. Re1 {[%clk 0:00:07.1]} 65... Bf4 {[%clk 0:00:24]} 66.
Ra1 {[%clk 0:00:06.6]} 66... Rc2 {[%clk 0:00:23.8]} 67. Rg1 {[%clk 0:00:02.4]}
67... Rc1 {[%clk 0:00:24]} 68. Rxc1 {[%clk 0:00:01.4]} 68... Bxc1 {[%clk
0:00:24.9]} 69. Kg1 {[%clk 0:00:02]} 69... Bf4 {[%clk 0:00:25.1]} 70. Kh1 {[%clk
0:00:02.6]} 70... g4 {[%clk 0:00:25.9]} 71. Kg1 {[%clk 0:00:03.2]} 71... g3
{[%clk 0:00:26.5]} 72. Kh1 {[%clk 0:00:03.3]} 72... g2+ {[%clk 0:00:27]} 73. Kg1
{[%clk 0:00:03.9]} 73... Be3+ {[%clk 0:00:27.5]} 74. Kh2 {[%clk 0:00:04.6]}
74... g1=Q+ {[%clk 0:00:27.7]} 75. Kxh3 {[%clk 0:00:05.5]} 75... Kf5 {[%clk
0:00:26.8]} 76. Kh4 {[%clk 0:00:05.7]} 76... Qg4# {[%clk 0:00:27.1]} 0-1